[Event "23rd European Women Club Cup 2018"]
[Site "Halkidiki"]
[Date "2018.10.14"]
[Round "3"]
[White "Petraki, Evaggelia"]
[Black "Haussernot, Cecile"]
[Result "0-1"]
[ECO "B90"]
[WhiteElo "1769"]
[BlackElo "2204"]
[Annotator "NA"]
[PlyCount "106"]
[EventDate "2018.10.12"]
[EventType "team-tourn"]
[EventCountry "GRE"]
[SourceTitle "playchess.com"]
[Source "ChessBase"]
[SourceQuality "1"]
[WhiteTeam "Thessaloniki"]
[BlackTeam "Mulhouse"]
[TimeControl "40/5400+30:1800+30"]

1. e4 {[%emt 0:00:00]} c5 {[%emt 0:00:00]} 2. Nf3 {[%emt 0:00:00]} d6 {[%emt 0:00:00]} 3. d4 {[%emt 0:00:00]} cxd4 {[%emt 0:00:00]} 4. Nxd4 {[%emt 0:00:00]} Nf6 {[%emt 0:00:00]} 5. Nc3 {[%emt 0:00:00]} a6 {[%emt 0:00:01]} 6. Be3 {[%emt 0:00:02]} e5 {[%emt 0:00:09]} 7. Nb3 {[%emt 0:00:09]} Be6 {[%emt 0:02:09]} 8. Be2 {[%emt 0:00:10]} Be7 {[%emt 0:00:09]} 9. O-O {[%emt 0:00:10]} O-O {[%emt 0:00:28]} 10. Nd5 {[%emt 0:00:28]} Nbd7 {[%emt 0:10:23]} 11. Qd3 {[%emt 0:03:13]} b5 {[%emt 0:07:56]} 12. Nxf6+ {[%emt 0:14:29]} Nxf6 {[%emt 0:00:10]} 13. f4 {[%emt 0:00:10]} Bc4 {[%emt 0:01:03]} 14. Qd1 {[%emt 0:00:43]} Nxe4 {[%emt 0:00:34]} 15. Bxc4 {[%emt 0:04:47]} bxc4 {[%emt 0:00:29]} 16. Nd2 {[%emt 0:00:36]} Nxd2 {[%emt 0:02:09]} 17. Qxd2 {[%emt 0:00:06]} Qc7 {[%emt 0:03:25]} 18. c3 {[%emt 0:03:37]} Rab8 {[%emt 0:01:02]} 19. Rf2 {[%emt 0:01:05]} exf4 {[%emt 0:02:38]} 20. Bxf4 {[%emt 0:01:52]} Qc6 {[%emt 0:00:54]} 21. Rd1 {[%emt 0:03:22]} Rfd8 {[%emt 0:03:13]} 22. Qd5 {[%emt 0:10:42]} Qxd5 {[%emt 0:14:03]} 23. Rxd5 {[%emt 0:00:03]} f6 {[%emt 0:02:40]} 24. Rfd2 {[%emt 0:04:14]} Rb6 {[%emt 0:00:28]} 25. R5d4 {[%emt 0:09:07]} Rc6 {[%emt 0:00:21]} 26. Kf2 {[%emt 0:11:28]} Kf7 {[%emt 0:00:29]} 27. Kf3 {[%emt 0:02:43]} g5 {[%emt 0:03:35]} 28. Be3 {[%emt 0:01:45]} f5 {[%emt 0:00:07]} 29. Rd1 {[%emt 0:02:02]} Bf6 {[%emt 0:02:42]} 30. Rd5 {[%emt 0:02:43]} Ke6 {[%emt 0:00:05]} 31. Bc1 {[%emt 0:04:23]} h5 {[%emt 0:00:40]} 32. g3 {[%emt 0:01:26]} Rh8 {[%emt 0:01:34]} 33. Ra5 {[%emt 0:01:53]} Rg8 {[%emt 0:01:16]} 34. Be3 {[%emt 0:03:32]} h4 {[%emt 0:04:44]} 35. Re1 {[%emt 0:05:01]} g4+ {[%emt 0:05:51]} 36. Kg2 {[%emt 0:00:23]} h3+ {[%emt 0:01:34]} 37. Kf2 {[%emt 0:00:21]} Be5 {[%emt 0:00:09]} 38. Bd4 {[%emt 0:00:55]} Rb8 {[%emt 0:00:21]} 39. Bxe5 {[%emt 0:01:02]} Rxb2+ {[%emt 0:00:05]} 40. Kg1 {[%emt 0:00:00]} dxe5 {[%emt 0:00:00]} 41. Rexe5+ {[%emt 0:05:46]} Kd7 {[%emt 0:05:30]} 42. Rxf5 {[%emt 0:04:17]} Rg2+ {[%emt 0:03:42]} 43. Kf1 {[%emt 0:02:41]} Rxh2 {[%emt 0:00:39]} 44. Rad5+ {[%emt 0:00:40]} Kc7 {[%emt 0:00:09]} 45. Rf7+ {[%emt 0:00:26]} Kb6 {[%emt 0:00:06]} 46. a4 {[%emt 0:00:13]} Rh1+ {[%emt 0:00:57]} 47. Kf2 {[%emt 0:00:50]} Re6 {[%emt 0:00:21]} 48. a5+ {[%emt 0:03:46]} Kc6 {[%emt 0:00:02]} 49. Rc7+ {[%emt 0:02:24]} Kxd5 {[%emt 0:00:58]} 50. Rc5+ Ke4 {[%emt 0:00:05]} 51. Rxc4+ {[%emt 0:00:14]} Kd3 {[%emt 0:00:08]} 52. Rd4+ {[%emt 0:00:19]} Kc2 {[%emt 0:00:05]} 53. Rd2+ {[%emt 0:00:07]} Kxd2 {[%emt 0:00:02]} 0-1

[Event "23rd European Women Club Cup 2018"]
[Site "Halkidiki"]
[Date "2018.10.14"]
[Round "3"]
[White "Nikolaki, Dimitria"]
[Black "Neuhauser, Salome"]
[Result "0-1"]
[ECO "A48"]
[WhiteElo "1327"]
[BlackElo "2115"]
[Annotator "NA"]
[PlyCount "68"]
[EventDate "2018.10.12"]
[EventType "team-tourn"]
[EventCountry "GRE"]
[SourceTitle "playchess.com"]
[Source "ChessBase"]
[SourceQuality "1"]
[WhiteTeam "Thessaloniki"]
[BlackTeam "Mulhouse"]
[TimeControl "40/5400+30:1800+30"]

1. d4 {[%emt 0:00:00]} Nf6 {[%emt 0:00:00]} 2. Nf3 {[%emt 0:00:00]} g6 {[%emt 0:00:00]} 3. Bf4 {[%emt 0:00:00]} Bg7 {[%emt 0:00:06]} 4. e3 {[%emt 0:00:13]} O-O {[%emt 0:00:06]} 5. Be2 {[%emt 0:00:20]} d6 {[%emt 0:00:15]} 6. h3 {[%emt 0:01:09]} Nbd7 {[%emt 0:02:07]} 7. O-O {[%emt 0:02:25]} Qe8 {[%emt 0:03:33]} 8. c3 {[%emt 0:09:10]} e5 {[%emt 0:00:19]} 9. dxe5 {[%emt 0:02:08]} Nxe5 {[%emt 0:04:10]} 10. Nbd2 {[%emt 0:14:04]} Qe7 {[%emt 0:03:02]} 11. Bh2 {[%emt 0:06:02]} Rd8 {[%emt 0:04:44]} 12. Qb3 {[%emt 0:12:33]} Ned7 {[%emt 0:11:27]} 13. Nd4 {[%emt 0:04:47]} Nc5 {[%emt 0:01:38]} 14. Qc2 {[%emt 0:02:17]} c6 {[%emt 0:11:38]} 15. Rfd1 {[%emt 0:18:42]} Nfe4 {[%emt 0:08:26]} 16. Nxe4 {[%emt 0:05:49]} Nxe4 {[%emt 0:00:02]} 17. Bf3 {[%emt 0:01:01]} Ng5 {[%emt 0:06:53]} 18. Be2 {[%emt 0:06:42]} a6 {[%emt 0:01:08]} 19. Bf4 {[%emt 0:09:31]} Ne6 {[%emt 0:05:55]} 20. Bh2 {[%emt 0:00:59]} d5 {[%emt 0:06:14]} 21. a3 {[%emt 0:01:48]} Re8 {[%emt 0:01:27]} 22. Re1 {[%emt 0:00:39]} Ng5 {[%emt 0:03:51]} 23. Bg3 {[%emt 0:00:38]} Ne4 {[%emt 0:00:21]} 24. Bf4 {[%emt 0:00:30]} c5 {[%emt 0:06:03]} 25. Nf3 {[%emt 0:00:29]} b5 {[%emt 0:01:02]} 26. Rad1 {[%emt 0:00:31]} Bb7 {[%emt 0:00:09]} 27. Bh2 {[%emt 0:00:30]} Rac8 {[%emt 0:01:21]} 28. a4 {[%emt 0:00:31]} Bc6 {[%emt 0:02:17]} 29. axb5 {[%emt 0:00:29]} axb5 {[%emt 0:00:06]} 30. Nd2 Nxd2 {[%emt 0:07:16]} 31. Rxd2 {[%emt 0:01:00]} d4 {[%emt 0:00:40]} 32. exd4 {[%emt 0:00:30]} cxd4 {[%emt 0:00:07]} 33. Qc1 {[%emt 0:00:32]} Qg5 {[%emt 0:00:39]} 34. Rdd1 {[%emt 0:00:28]} Qxg2# {[%emt 0:00:07]} 0-1

[Event "23rd European Women Club Cup 2018"]
[Site "Halkidiki"]
[Date "2018.10.15"]
[Round "4"]
[White "Khotenashvili, Bela"]
[Black "Richard, Emma"]
[Result "1-0"]
[ECO "A46"]
[WhiteElo "2469"]
[BlackElo "2127"]
[Annotator "ChessBase"]
[PlyCount "69"]
[EventDate "2018.10.12"]
[EventType "team-tourn"]
[EventCountry "GRE"]
[SourceTitle "playchess.com"]
[Source "ChessBase"]
[SourceQuality "1"]
[WhiteTeam "Nona"]
[BlackTeam "Mulhouse"]
[TimeControl "40/5400+30:1800+30"]

1. d4 {[%emt 0:00:00]} Nf6 {[%emt 0:00:00]} 2. Nf3 {[%emt 0:00:00]} e6 {[%emt 0:00:00]} 3. Bf4 {[%emt 0:00:00]} c5 {[%emt 0:03:03]} 4. e3 {[%emt 0:00:00]} Nc6 {[%emt 0:00:22]} 5. Nbd2 {[%emt 0:00:53]} cxd4 {[%emt 0:07:19]} 6. exd4 {[%emt 0:00:17]} d5 {[%emt 0:02:11]} 7. c3 {[%emt 0:00:58]} Be7 {[%emt 0:06:21]} 8. Bd3 {[%emt 0:00:53]} O-O {[%emt 0:00:39]} 9. O-O {[%emt 0:01:41]} Nh5 {[%emt 0:05:47]} 10. Be3 {[%emt 0:03:38]} f5 {[%emt 0:00:55]} 11. Ne5 {[%emt 0:05:42]} g6 {[%emt 0:06:24]} 12. Ndf3 {[%emt 0:03:55]} Bd6 {[%emt 0:23:53]} 13. Bh6 {[%emt 0:19:49]} Re8 {[%emt 0:05:04]} 14. Re1 {[%emt 0:00:12]} Qc7 {[%emt 0:01:18]} 15. Rc1 {[%emt 0:04:47]} Nf6 {[%emt 0:07:55]} 16. c4 {[%emt 0:06:11]} Bxe5 {[%emt 0:13:36]} 17. Nxe5 {[%emt 0:03:10]} dxc4 {[%emt 0:02:39]} 18. Bxc4 {[%emt 0:01:22]} Qb6 {[%emt 0:01:10]} 19. Nxc6 {[%emt 0:14:17]} bxc6 {[%emt 0:00:05]} 20. Bb3 {[%emt 0:00:38]} Bd7 {[%emt 0:07:12]} 21. Bf4 {[%emt 0:04:17]} Rad8 {[%emt 0:01:04]} 22. h3 {[%emt 0:03:39]} Nd5 {[%emt 0:00:57]} 23. Be5 {[%emt 0:00:23]} Rf8 {[%emt 0:00:36]} 24. Rc5 {[%emt 0:07:43]} Rf7 {[%emt 0:01:48]} 25. Qd2 {[%emt 0:00:06]} Qb4 {[%emt 0:00:45]} 26. Qc1 {[%emt 0:01:45]} f4 {[%emt 0:01:22]} 27. Re4 {[%emt 0:01:59]} f3 {[%emt 0:00:29]} 28. g3 {[%emt 0:00:42]} Qb6 {[%emt 0:00:20]} 29. Qh6 {[%emt 0:01:35]} Ne7 {[%emt 0:00:32]} 30. Rf4 {[%emt 0:02:32]} Qb4 {[%emt 0:00:08]} 31. Rc3 {[%emt 0:00:59]} Rdf8 {[%emt 0:00:20]} 32. Rg4 {[%emt 0:06:23]} Qa5 {[%emt 0:01:08]} 33. h4 {[%emt 0:01:54]} Nf5 {[%emt 0:00:32]} 34. Rxg6+ {[%emt 0:00:15]} Ng7 {[%emt 0:00:12]} 35. Rxg7+ {[%emt 0:00:08]} 1-0

[Event "23rd European Women Club Cup 2018"]
[Site "Halkidiki"]
[Date "2018.10.15"]
[Round "4"]
[White "Cramling, Pia"]
[Black "Paehtz, Elisabeth"]
[Result "1-0"]
[ECO "D10"]
[WhiteElo "2465"]
[BlackElo "2513"]
[Annotator "ChessBase"]
[PlyCount "71"]
[EventDate "2018.10.12"]
[EventType "team-tourn"]
[EventCountry "GRE"]
[SourceTitle "playchess.com"]
[Source "ChessBase"]
[SourceQuality "1"]
[WhiteTeam "Monte-Carlo"]
[BlackTeam "Pentole Agnelli"]
[TimeControl "40/5400+30:1800+30"]

1. d4 {[%emt 0:00:00]} d5 {[%emt 0:00:00]} 2. c4 {[%emt 0:01:28]} c6 {[%emt 0:00:00]} 3. cxd5 {[%emt 0:01:12]} cxd5 {[%emt 0:00:00]} 4. Bf4 {[%emt 0:00:22]} Nc6 {[%emt 0:00:00]} 5. Nc3 {[%emt 0:00:29]} e5 {[%emt 0:00:00]} 6. dxe5 {[%emt 0:01:01]} d4 {[%emt 0:00:00]} 7. Ne4 {[%emt 0:00:12]} Qa5+ {[%emt 0:00:58]} 8. Nd2 {[%emt 0:01:04]} Nge7 {[%emt 0:03:11]} 9. Ngf3 {[%emt 0:07:53]} Nd5 {[%emt 0:00:04]} 10. g3 {[%emt 0:00:34]} h6 {[%emt 0:00:02]} 11. h4 {[%emt 0:00:20]} Be6 {[%emt 0:01:11]} 12. Bh3 {[%emt 0:06:41]} Be7 {[%emt 0:18:43]} 13. Kf1 {[%emt 0:08:25]} Bxh3+ {[%emt 0:08:39]} 14. Rxh3 {[%emt 0:00:10]} O-O-O {[%emt 0:06:20]} 15. Nb3 {[%emt 0:10:22]} Qb6 {[%emt 0:01:04]} 16. Kg2 {[%emt 0:01:51]} Kb8 {[%emt 0:16:11]} 17. h5 {[%emt 0:14:18]} a5 {[%emt 0:03:44]} 18. Rb1 {[%emt 0:04:13]} Rhg8 {[%emt 0:14:41]} 19. Qd3 {[%emt 0:16:23]} Nxf4+ {[%emt 0:06:29]} 20. gxf4 {[%emt 0:00:06]} a4 {[%emt 0:00:25]} 21. Nc1 {[%emt 0:02:23]} Nb4 {[%emt 0:01:34]} 22. Qe4 {[%emt 0:00:59]} Nd5 {[%emt 0:07:42]} 23. Rg3 {[%emt 0:09:58]} f5 {[%emt 0:01:10]} 24. exf6 {[%emt 0:00:19]} Bxf6 {[%emt 0:00:04]} 25. Ne5 {[%emt 0:01:04]} Qb5 {[%emt 0:02:14]} 26. Ncd3 {[%emt 0:06:53]} Nc3 {[%emt 0:00:20]} 27. bxc3 {[%emt 0:00:07]} Qxb1 {[%emt 0:00:02]} 28. cxd4 {[%emt 0:00:37]} Qxa2 {[%emt 0:04:27]} 29. Nb4 {[%emt 0:00:25]} Qb2 {[%emt 0:00:07]} 30. d5 {[%emt 0:00:29]} Rge8 {[%emt 0:04:46]} 31. Re3 {[%emt 0:00:06]} a3 {[%emt 0:00:39]} 32. Qc4 {[%emt 0:00:41]} Bxe5 {[%emt 0:00:38]} 33. fxe5 {[%emt 0:04:48]} Rxe5 {[%emt 0:00:20]} 34. Qf4 {[%emt 0:00:25]} a2 {[%emt 0:00:38]} 35. Nxa2 {[%emt 0:00:23]} Rdxd5 {[%emt 0:00:31]} 36. Nc3 {[%emt 0:00:36]} 1-0

[Event "23rd European Women Club Cup 2018"]
[Site "Halkidiki"]
[Date "2018.10.15"]
[Round "4"]
[White "Ushenina, Anna"]
[Black "Shvayger, Yuliya"]
[Result "0-1"]
[ECO "E92"]
[WhiteElo "2451"]
[BlackElo "2375"]
[Annotator "ChessBase"]
[PlyCount "84"]
[EventDate "2018.10.12"]
[EventType "team-tourn"]
[EventCountry "GRE"]
[SourceTitle "playchess.com"]
[Source "ChessBase"]
[SourceQuality "1"]
[WhiteTeam "Ugra"]
[BlackTeam "Beer Sheva"]
[TimeControl "40/5400+30:1800+30"]

1. Nf3 {[%emt 0:00:00]} Nf6 {[%emt 0:00:00]} 2. c4 {[%emt 0:00:06]} g6 {[%emt 0:00:00]} 3. Nc3 {[%emt 0:00:04]} Bg7 {[%emt 0:00:14]} 4. e4 {[%emt 0:00:06]} d6 {[%emt 0:00:09]} 5. d4 {[%emt 0:00:16]} O-O {[%emt 0:00:10]} 6. Be2 {[%emt 0:00:21]} e5 {[%emt 0:00:11]} 7. d5 {[%emt 0:00:19]} a5 {[%emt 0:04:09]} 8. Bg5 {[%emt 0:00:21]} Na6 {[%emt 0:02:11]} 9. Nd2 {[%emt 0:00:17]} Nc5 {[%emt 0:00:39]} 10. O-O {[%emt 0:18:28]} h6 {[%emt 0:03:12]} 11. Be3 {[%emt 0:00:57]} Nfd7 {[%emt 0:02:43]} 12. Qc2 {[%emt 0:01:48]} b6 {[%emt 0:08:39]} 13. Rab1 {[%emt 0:12:13]} f5 {[%emt 0:15:40]} 14. exf5 {[%emt 0:00:27]} gxf5 {[%emt 0:00:02]} 15. f4 {[%emt 0:00:13]} e4 {[%emt 0:00:17]} 16. Nb5 {[%emt 0:03:23]} Nf6 {[%emt 0:01:56]} 17. h3 {[%emt 0:02:55]} Bd7 {[%emt 0:00:29]} 18. Nd4 {[%emt 0:00:14]} Kh8 {[%emt 0:08:16]} 19. Rbd1 {[%emt 0:13:25]} Qe8 {[%emt 0:04:00]} 20. Kh2 {[%emt 0:03:56]} Qg6 {[%emt 0:01:29]} 21. Rg1 {[%emt 0:01:16]} Rae8 {[%emt 0:03:19]} 22. Nf1 {[%emt 0:01:54]} h5 {[%emt 0:06:03]} 23. g3 {[%emt 0:07:36]} Bh6 {[%emt 0:01:50]} 24. Kh1 {[%emt 0:00:41]} Re7 {[%emt 0:00:53]} 25. Bf2 {[%emt 0:03:14]} Qh7 {[%emt 0:06:04]} 26. Be3 {[%emt 0:02:14]} Rg7 {[%emt 0:01:50]} 27. Qc3 {[%emt 0:03:51]} Na4 {[%emt 0:05:58]} 28. Qd2 {[%emt 0:00:15]} Nc5 {[%emt 0:00:21]} 29. b3 {[%emt 0:01:13]} Rfg8 {[%emt 0:00:56]} 30. Qc3 {[%emt 0:01:06]} Qg6 {[%emt 0:01:03]} 31. Nh2 {[%emt 0:01:06]} Qf7 {[%emt 0:02:19]} 32. Qe1 {[%emt 0:04:41]} Kh7 {[%emt 0:08:33]} 33. Qf2 {[%emt 0:01:49]} Qe7 {[%emt 0:03:48]} 34. Rg2 {[%emt 0:02:30]} Nd3 {[%emt 0:02:09]} 35. Bxd3 {[%emt 0:02:23]} exd3 {[%emt 0:00:02]} 36. Rdg1 {[%emt 0:03:36]} Ne4 {[%emt 0:01:08]} 37. Qf3 {[%emt 0:00:12]} h4 {[%emt 0:04:04]} 38. gxh4 {[%emt 0:03:32]} Qxh4 {[%emt 0:00:02]} 39. Rxg7+ {[%emt 0:00:15]} Rxg7 {[%emt 0:00:02]} 40. Nf1 {[%emt 0:00:00]} Rxg1+ {[%emt 0:00:00]} 41. Kxg1 {[%emt 0:01:23]} Qe1 {[%emt 0:07:07]} 42. Bf2 {[%emt 0:03:53]} d2 {[%emt 0:04:02]} 0-1

[Event "23rd European Women Club Cup 2018"]
[Site "Halkidiki"]
[Date "2018.10.15"]
[Round "4"]
[White "Bodnaruk, Anastasia"]
[Black "Injac, Teodora"]
[Result "1/2-1/2"]
[ECO "C11"]
[WhiteElo "2423"]
[BlackElo "2258"]
[Annotator "NA"]
[PlyCount "91"]
[EventDate "2018.10.12"]
[EventType "team-tourn"]
[EventCountry "GRE"]
[SourceTitle "playchess.com"]
[Source "ChessBase"]
[SourceQuality "1"]
[WhiteTeam "SSHOR"]
[BlackTeam "Maribor"]
[TimeControl "40/5400+30:1800+30"]

1. e4 {[%emt 0:00:00]} e6 {[%emt 0:00:00]} 2. d4 {[%emt 0:00:00]} d5 {[%emt 0:00:00]} 3. Nc3 {[%emt 0:00:00]} Nf6 {[%emt 0:00:04]} 4. e5 {[%emt 0:00:00]} Nfd7 {[%emt 0:00:09]} 5. f4 {[%emt 0:00:00]} c5 {[%emt 0:00:06]} 6. Nf3 {[%emt 0:00:03]} Nc6 {[%emt 0:00:07]} 7. Be3 {[%emt 0:00:18]} Be7 {[%emt 0:00:33]} 8. Qd2 {[%emt 0:01:01]} O-O {[%emt 0:00:17]} 9. dxc5 {[%emt 0:02:27]} Bxc5 {[%emt 0:02:29]} 10. O-O-O {[%emt 0:00:27]} Qa5 {[%emt 0:01:32]} 11. Bxc5 {[%emt 0:02:46]} Nxc5 {[%emt 0:00:53]} 12. h4 {[%emt 0:02:00]} Bd7 {[%emt 0:18:23]} 13. Kb1 {[%emt 0:00:51]} Rfd8 {[%emt 0:20:49]} 14. Qe3 {[%emt 0:13:57]} Rac8 {[%emt 0:04:21]} 15. Nd4 {[%emt 0:10:35]} Nxd4 {[%emt 0:06:49]} 16. Rxd4 {[%emt 0:00:55]} Na4 {[%emt 0:15:54]} 17. Nxa4 {[%emt 0:02:05]} Bxa4 $14 {[%emt 0:00:04]} 18. Bd3 {[%emt 0:04:17]} Bb5 {[%emt 0:02:11]} 19. h5 {[%emt 0:02:29]} Bxd3 {[%emt 0:01:13]} 20. Qxd3 {[%emt 0:03:16]} Rc6 {[%emt 0:02:54]} 21. g4 {[%emt 0:13:14]} Rdc8 {[%emt 0:00:43]} 22. c3 {[%emt 0:00:44]} Rc4 {[%emt 0:04:20]} 23. f5 {[%emt 0:06:22]} Qb6 {[%emt 0:03:51]} 24. Ka1 {[%emt 0:07:47]} Qxd4 {[%emt 0:06:14]} 25. cxd4 {[%emt 0:01:45]} Rc1+ {[%emt 0:00:02]} 26. Qb1 {[%emt 0:00:09]} Rxb1+ {[%emt 0:00:06]} 27. Kxb1 {[%emt 0:00:01]} Rc4 {[%emt 0:02:51]} 28. Rd1 {[%emt 0:13:21]} g6 {[%emt 0:03:25]} 29. hxg6 {[%emt 0:04:44]} hxg6 {[%emt 0:00:03]} 30. fxg6 {[%emt 0:07:24]} fxg6 {[%emt 0:00:06]} 31. Rd3 {[%emt 0:00:02]} g5 {[%emt 0:01:57]} 32. b3 {[%emt 0:00:45]} Rc7 {[%emt 0:00:05]} 33. Rh3 {[%emt 0:01:28]} Rh7 {[%emt 0:01:12]} 34. Rc3 {[%emt 0:01:11]} Rf7 {[%emt 0:00:09]} 35. Rc8+ {[%emt 0:00:08]} Rf8 {[%emt 0:00:22]} 36. Rxf8+ {[%emt 0:00:41]} Kxf8 {[%emt 0:00:05]} 37. Kb2 {[%emt 0:00:30]} Ke7 {[%emt 0:00:06]} 38. Kc3 {[%emt 0:00:09]} Kd7 {[%emt 0:00:05]} 39. Kb4 {[%emt 0:00:14]} Kc6 {[%emt 0:00:57]} 40. Ka5 {[%emt 0:00:00]} Kc7 {[%emt 0:00:00]} 41. Kb5 {[%emt 0:04:33]} Kd7 {[%emt 0:04:17]} 42. a4 {[%emt 0:02:22]} Kc7 {[%emt 0:00:24]} 43. Kc5 {[%emt 0:02:23]} Kd7 {[%emt 0:01:58]} 44. a5 {[%emt 0:02:13]} Kc7 {[%emt 0:00:12]} 45. Kb5 {[%emt 0:00:14]} Kd7 {[%emt 0:00:20]} 46. Kc5 {[%emt 0:00:21]} 1/2-1/2

[Event "23rd European Women Club Cup 2018"]
[Site "Halkidiki"]
[Date "2018.10.15"]
[Round "4"]
[White "Fataliyeva, Ulviyya"]
[Black "Andolfatto, Maria"]
[Result "1-0"]
[ECO "C42"]
[WhiteElo "2320"]
[BlackElo "2068"]
[Annotator "NA"]
[PlyCount "80"]
[EventDate "2018.10.12"]
[EventType "team-tourn"]
[EventCountry "GRE"]
[SourceTitle "playchess.com"]
[Source "ChessBase"]
[SourceQuality "1"]
[WhiteTeam "Odlar Yurdu"]
[BlackTeam "Banca Alpi Marittime"]
[TimeControl "40/5400+30:1800+30"]

1. e4 {[%emt 0:00:00]} e5 {[%emt 0:00:00]} 2. Nf3 {[%emt 0:00:00]} Nf6 {[%emt 0:00:00]} 3. Nxe5 {[%emt 0:00:00]} d6 {[%emt 0:00:05]} 4. Nf3 {[%emt 0:00:00]} Nxe4 {[%emt 0:00:12]} 5. d4 {[%emt 0:00:02]} d5 {[%emt 0:00:48]} 6. Bd3 {[%emt 0:00:09]} Bd6 {[%emt 0:00:31]} 7. O-O {[%emt 0:02:46]} O-O {[%emt 0:00:21]} 8. c4 {[%emt 0:00:11]} c6 {[%emt 0:00:38]} 9. Qc2 {[%emt 0:01:44]} Na6 {[%emt 0:01:01]} 10. a3 {[%emt 0:02:35]} Bg4 {[%emt 0:00:58]} 11. Ne5 {[%emt 0:04:01] C42: Petroff Defence: 3 Nxe5 and unusual White 3rd moves} Bf5 {[%emt 0:01:01]} 12. Be3 {[%emt 0:05:20]} (12. b4 Nc7 13. f3 Bg6 14. c5 Bxe5 15. dxe5 Ng5 16. Bb2 d4 17. f4 Nd5 18. fxg5 Ne3 {1-0 (42) Anand,V (2767)-Caruana,F (2811) Wijk aan Zee 2018}) 12... c5 {[%emt 0:07:53]} 13. Nc3 {[%emt 0:22:27]} cxd4 {[%emt 0:15:56]} 14. Bxd4 {[%emt 0:00:12]} Bxe5 {[%emt 0:07:31]} 15. Bxe5 {[%emt 0:00:10]} Re8 {[%emt 0:05:05]} 16. Bg3 $146 {[%emt 0:09:52]} ({Predecessor:} 16. cxd5 Rxe5 17. Bxe4 Bxe4 18. Nxe4 Qxd5 {0-1 (37) Mazur,S (2472)-Valsecchi,A (2491) Balatonszarszo 2017}) 16... Nxg3 {[%emt 0:06:01]} 17. fxg3 {[%emt 0:01:42]} Bxd3 {[%emt 0:00:25]} 18. Qxd3 {[%emt 0:00:04]} dxc4 {[%emt 0:01:22]} 19. Qxc4 {[%emt 0:00:24]} Qc7 {[%emt 0:03:37]} 20. Qa2 {[%emt 0:00:57]} Qb6+ {[%emt 0:03:10]} 21. Rf2 $11 {[%emt 0:07:11]} Qe6 {[%emt 0:00:19]} 22. Qxe6 {[%emt 0:00:13]} Rxe6 {[%emt 0:00:07]} 23. Rd1 {[%emt 0:00:35]} Rae8 {[%emt 0:21:06]} 24. Nb5 {[%emt 0:02:36]} Nc5 {[%emt 0:03:08]} 25. b4 {[%emt 0:06:02]} Na4 {[%emt 0:06:39]} 26. Rd7 {[%emt 0:04:35]} R6e7 {[%emt 0:06:38]} 27. Rxe7 {[%emt 0:00:44]} Rxe7 {[%emt 0:00:02]} 28. Rc2 {[%emt 0:00:42]} g6 {[%emt 0:01:36]} 29. Nxa7 {[%emt 0:00:27]} Kg7 {[%emt 0:02:08]} 30. Kf2 {[%emt 0:01:53]} Kf6 {[%emt 0:00:40]} 31. Nb5 {[%emt 0:01:00]} Nb6 {[%emt 0:00:48]} 32. Rc5 {[%emt 0:03:43]} Rd7 {[%emt 0:02:06]} 33. g4 {[%emt 0:00:11]} h6 {[%emt 0:00:37]} 34. Nc3 {[%emt 0:00:54]} Ke6 {[%emt 0:01:19]} 35. Ke2 {[%emt 0:01:08]} Rd4 {[%emt 0:01:55]} 36. h3 {[%emt 0:00:40]} Rd7 {[%emt 0:01:14]} 37. a4 {[%emt 0:02:00]} Na8 {[%emt 0:01:01]} 38. Rc8 {[%emt 0:02:29]} Nc7 {[%emt 0:00:26]} 39. Ne4 {[%emt 0:00:37]} b6 {[%emt 0:00:35]} 40. a5 {[%emt 0:00:00]} Nd5 1-0

[Event "23rd European Women Club Cup 2018"]
[Site "Halkidiki"]
[Date "2018.10.15"]
[Round "4"]
[White "Haussernot, Cecile"]
[Black "Batsiashvili, Nino"]
[Result "0-1"]
[ECO "B13"]
[WhiteElo "2204"]
[BlackElo "2482"]
[Annotator "ChessBase"]
[PlyCount "108"]
[EventDate "2018.10.12"]
[EventType "team-tourn"]
[EventCountry "GRE"]
[SourceTitle "playchess.com"]
[Source "ChessBase"]
[SourceQuality "1"]
[WhiteTeam "Mulhouse"]
[BlackTeam "Nona"]
[TimeControl "40/5400+30:1800+30"]

1. e4 {[%emt 0:00:00]} c6 {[%emt 0:00:00]} 2. d4 {[%emt 0:00:00]} d5 {[%emt 0:00:00]} 3. exd5 {[%emt 0:00:00]} cxd5 {[%emt 0:00:00]} 4. Bd3 {[%emt 0:00:00]} Nc6 {[%emt 0:00:00]} 5. c3 {[%emt 0:00:00]} Qc7 {[%emt 0:00:00]} 6. h3 {[%emt 0:04:39]} Nf6 {[%emt 0:01:50]} 7. Nf3 {[%emt 0:07:59]} g6 {[%emt 0:00:06]} 8. O-O {[%emt 0:00:28]} Bf5 {[%emt 0:00:07]} 9. Bb5 {[%emt 0:03:19]} Bg7 {[%emt 0:03:25]} 10. Ne5 {[%emt 0:01:28]} O-O {[%emt 0:00:37]} 11. Bxc6 {[%emt 0:05:22]} bxc6 {[%emt 0:03:23]} 12. Bf4 {[%emt 0:05:02]} Qb6 {[%emt 0:00:54]} 13. Qb3 {[%emt 0:12:35]} Rfc8 {[%emt 0:04:10]} 14. Nd2 {[%emt 0:03:02]} c5 {[%emt 0:00:40]} 15. dxc5 {[%emt 0:03:23]} Qxc5 {[%emt 0:02:11]} 16. Qa4 {[%emt 0:01:22]} Ne4 {[%emt 0:05:02]} 17. Ndf3 {[%emt 0:01:43]} f6 {[%emt 0:23:52]} 18. Nd3 {[%emt 0:02:27]} Qc4 {[%emt 0:03:32]} 19. Qxc4 {[%emt 0:03:57]} Rxc4 {[%emt 0:00:09]} 20. Rad1 {[%emt 0:10:51]} e5 {[%emt 0:13:10]} 21. Bc1 {[%emt 0:07:43]} a5 {[%emt 0:00:07]} 22. Rfe1 {[%emt 0:00:50]} Rac8 {[%emt 0:03:13]} 23. g4 {[%emt 0:05:52]} Be6 {[%emt 0:05:15]} 24. g5 {[%emt 0:00:11]} Nxg5 {[%emt 0:06:18]} 25. Bxg5 {[%emt 0:01:38]} Bxh3 {[%emt 0:04:08]} 26. Ndxe5 {[%emt 0:02:19]} fxe5 {[%emt 0:00:05]} 27. Nxe5 {[%emt 0:00:48]} Ra4 {[%emt 0:04:00]} 28. Rxd5 {[%emt 0:00:46]} Re8 {[%emt 0:02:47]} 29. Kh2 {[%emt 0:07:52]} Bf5 {[%emt 0:01:12]} 30. a3 {[%emt 0:01:32]} Re4 {[%emt 0:00:56]} 31. Rxe4 {[%emt 0:02:23]} Bxe4 {[%emt 0:00:02]} 32. Rxa5 {[%emt 0:00:05]} Rxe5 {[%emt 0:00:51]} 33. Rxe5 {[%emt 0:00:02]} Bxe5+ {[%emt 0:00:07]} 34. f4 {[%emt 0:00:05]} Bg7 {[%emt 0:00:24]} 35. Kg3 {[%emt 0:00:55]} Kf7 {[%emt 0:00:08]} 36. Kf2 {[%emt 0:00:02]} Ke6 {[%emt 0:00:14]} 37. Ke3 {[%emt 0:00:04]} Bc2 {[%emt 0:01:34]} 38. Kd2 {[%emt 0:01:31]} Bb3 {[%emt 0:00:06]} 39. Kd3 {[%emt 0:00:05]} Kd5 {[%emt 0:00:05]} 40. Ke3 {[%emt 0:00:00]} Bf8 {[%emt 0:00:00]} 41. Bf6 {[%emt 0:00:31]} Bc5+ {[%emt 0:01:06]} 42. Kd3 {[%emt 0:00:23]} Bd6 {[%emt 0:01:55]} 43. Ke3 {[%emt 0:00:44]} h5 {[%emt 0:00:18]} 44. Bg5 {[%emt 0:00:02]} Bc5+ {[%emt 0:01:09]} 45. Kd3 {[%emt 0:00:22]} Bb6 {[%emt 0:01:03]} 46. a4 {[%emt 0:00:58]} Bc7 {[%emt 0:00:43]} 47. c4+ {[%emt 0:01:52]} Bxc4+ {[%emt 0:00:04]} 48. Kc3 {[%emt 0:00:03]} Be2 {[%emt 0:00:21]} 49. Kb4 {[%emt 0:00:33]} h4 {[%emt 0:00:49]} 50. Bxh4 {[%emt 0:00:09]} Bxf4 {[%emt 0:00:04]} 51. Ka5 {[%emt 0:00:20]} g5 {[%emt 0:00:09]} 52. Bf2 {[%emt 0:00:05]} g4 {[%emt 0:00:23]} 53. Bg1 {[%emt 0:00:05]} g3 {[%emt 0:00:10]} 54. Kb6 {[%emt 0:00:07]} Be5 {[%emt 0:00:17]} 0-1